Cogmind - Beta 17 @@@ ROGUE MODE // 2026.07.21 @ 00:38:29 Player: Xintrosi Result: Destroyed by Y-45 Defender with Heavy Assault Rifle Performance ------------- Evolutions (1) 500 Regions Visited (3) 600 Robots Destroyed (0) 0 Value Destroyed (0) 0 Prototype IDs (0) 0 Alien Tech Used (0) 0 Bonus (200) 200 TOTAL SCORE: 1300 Bonus ------- Pacifist 200 Cogmind --------- Core Integrity 0/400 Matter 300/300 Energy 100/100 System Corruption 0% Temperature Cool (9) Movement Walking (120) Location -9/Storage Parts ------- > --- POWER (1) -------- (None) > --- PROPULSION (3) --- Aluminum Leg > --- UTILITY (3) ------ (None) > --- WEAPON (2) ------- (None) > --- INVENTORY (5) ---- Light Ion Engine Improved Heat Sink Small Storage Unit Peak State ------------ > --- POWER ------------ Ion Engine > --- PROPULSION ------- Aluminum Leg Aluminum Leg Aluminum Leg > --- UTILITY ---------- Small Storage Unit Seismic Detector ECM Suite > --- WEAPON ----------- (None) > --- INVENTORY -------- Light Ion Engine Aluminum Leg Aluminum Leg Aluminum Leg Improved Heat Sink Seismic Detector [Rating: 7] Favorites ----------- Power Ion Engine Engine Ion Engine Propulsion Aluminum Leg Leg Aluminum Leg Utility Small Storage Unit Device Seismic Detector Storage Small Storage Unit Weapon None Build | -11 -10 -9 -9 ------- Run | Yrd Mat Mat Sto Slots Evolved 2 | . . 2 . Power . | . . . . Propulsion 1 | . . 1 . Utility 1 | . . 1 . Weapon . | . . . . Parts Attached 12 | 5 2 2 3 Power 2 | 2 . . . Engine 2 | 2 . . . Core . | . . . . Reactor . | . . . . Propulsion 6 | 2 1 1 2 Treads . | . . . . Leg 6 | 2 1 1 2 Wheel . | . . . . Hover . | . . . . Flight . | . . . . Utility 4 | 1 1 1 1 Device 3 | . 1 1 1 Storage 1 | 1 . . . Processor . | . . . . Hackware . | . . . . Protection . | . . . . Artifact . | . . . . Weapon . | . . . . Energy Gun . | . . . . Energy Cannon . | . . . . Ballistic Gun . | . . . . Ballistic Cannon . | . . . . Launcher . | . . . . Special Weapon . | . . . . Impact Weapon . | . . . . Slashing Weapon . | . . . . Piercing Weapon . | . . . . Special Melee Weapon . | . . . . Unidentified Prototypes . | . . . . Parts Lost 9 | . . 1 8 Power 1 | . . . 1 Propulsion 5 | . . . 5 Utility 3 | . . 1 2 Weapon . | . . . . Highest Loss Streak 7 | . . 1 7 To Critical Strikes . | . . . . Average Backups 5 | . 5 6 5 Power . | . 1 1 1 Propulsion 2 | . 3 3 2 Utility 1 | . 1 2 1 Weapon . | . . . . Tool/Special . | . . . . Unused Backups 1 | . . . 1 Power . | . . . . Propulsion . | . . . . Utility 1 | . . . 1 Weapon . | . . . . Tool/Special . | . . . . Average Slot Usage (%) 68 | . 68 73 68 Engine 12 | . 14 11 10 Leg 28 | . 27 33 29 Device 14 | . 11 18 18 Storage 12 | . 14 11 10 Peak Build Rating 7 | 4 6 7 7 Average Rating 5 | 3 5 6 6 On Entrance 4 | . 4 6 6 Avg Prop Armor Cover (%) . | . . . . Naked Turns 1 | . . . 1 Heaviest Build 13 | 10 11 13 13 Greatest Support 30 | 20 20 30 30 Greatest Overweight (x) 3 | 2 3 . . Average Overweight (x) . | . . . . Largest Inventory Capacity 8 | 8 8 8 8 Average Capacity 7 | 7 8 8 7 Most Carried 8 | 1 8 7 6 Average Carried 5 | . 5 6 4 Final Capacity 8 | 8 8 8 5 Final Carried 8 | 1 8 6 3 Class Distribution -------------------- 100% | Mutant Dominant Class ---------------- Mutant | -10/Materials Mutant | -9/Materials Mutant | -9/Storage Resources | -11 -10 -9 -9 ----------- Run | Yrd Mat Mat Sto Matter Collected 307 | 176 124 . 7 Remotely . | . . . . Salvage Created . | . . . . Parts . | . . . . Haulers Intercepted . | . . . . Recyclers Shooed . | . . . . Parts Field Recycled . | . . . . Retrieved Matter . | . . . . Parts Self-Destructed . | . . . . Prevented . | . . . . Parts Restored . | . . . . Kills | -11 -10 -9 -9 ------- Run | Yrd Mat Mat Sto Combat Hostiles Destroyed . | . . . . Classes Destroyed . | . . . . Best Kill Streak . | . . . . Combat Bots Only . | . . . . Max Kills in Single Turn . | . . . . Gunslinging . | . . . . Exploded . | . . . . Melee . | . . . . Uniques/NPCs Destroyed . | . . . . Combat | -11 -10 -9 -9 -------- Run | Yrd Mat Mat Sto Hostile Shots Fired 121 | . 11 22 88 Missed 35 | . 5 10 20 Hits 86 | . 6 12 68 Melee 2 | . . . 2 Projectile 84 | . 6 12 66 Critical Strikes 2 | . . . 2 Damage Taken 1082 | . 57 182 843 Core 434 | . 19 61 354 Absorbed by Shields . | . . . . Core Remaining (%) 96 | 100 92 . . Volleys Fired . | . . . . Largest . | . . . . Hottest . | . . . . Shots Fired . | . . . . Gun . | . . . . Cannon . | . . . . Launcher . | . . . . Special . | . . . . Kinetic . | . . . . Thermal . | . . . . Explosive . | . . . . Electromagnetic . | . . . . Robot Hit Streak . | . . . . Robot Miss Streak . | . . . . Penetration Max . | . . . . Secondary Targets . | . . . . Shots Hit Robots . | . . . . Core Hits 1 | . . . 1 Critical Kills . | . . . . Critical Parts Destroyed . | . . . . Critical Strikes . | . . . . Melee Attacks . | . . . . Impact . | . . . . Slashing . | . . . . Piercing . | . . . . Sneak Attacks . | . . . . Combat Hostiles . | . . . . Follow-up Attacks . | . . . . Damage Inflicted 26 | . . . 26 Guns . | . . . . Cannons . | . . . . Explosions . | . . . . Melee . | . . . . Ramming 26 | . . . 26 Kinetic . | . . . . Thermal . | . . . . Explosive . | . . . . Electromagnetic . | . . . . Impact . | . . . . Slashing . | . . . . Piercing . | . . . . Highest Corruption . | . . . . Average Corruption . | . . . . Corruption Purged . | . . . . Corruption Blocked . | . . . . Overload Shots . | . . . . Overflow Damage . | . . . . Projectiles . | . . . . Explosions . | . . . . Melee . | . . . . Knockbacks 1 | . . . 1 Impact 1 | . . . 1 Kinetic . | . . . . Secondary . | . . . . Self-Inflicted Damage 2 | . . . 2 Shots . | . . . . Rammed 1 | . . . 1 Targets Rammed 11 | . . . 11 Kicked 10 | . . . 10 Crushed . | . . . . Highest Temperature 11 | . . . 11 Average Temperature 9 | . . . 9 Received Heat Transfer 363 | . . 63 300 Siege Activations . | . . . . Martial Activations . | . . . . Shielding Activations . | . . . . Robots Disrupted . | . . . . Combat Hostiles . | . . . . Robots Corrupted . | . . . . Combat Hostiles . | . . . . Parts Fried . | . . . . Impact Corruptions . | . . . . Robots Melted . | . . . . Combat Hostiles . | . . . . Parts Melted . | . . . . Heat Transferred . | . . . . Parts Sabotaged . | . . . . Parts Stolen . | . . . . Parts Stripped . | . . . . Power Chain Reactions . | . . . . Alert | -11 -10 -9 -9 ------- Run | Yrd Mat Mat Sto Maximum Alert Level . | . . . . Low Security (%) 100 | 100 100 100 100 Level 1 . | . . . . Level 2 . | . . . . Level 3 . | . . . . Level 4 . | . . . . Level 5 . | . . . . High Security . | . . . . Max Security . | . . . . Peak Influence 7 | . 6 7 . Initial . | . . . . Average . | . . 1 . Influence Increases 13 | . 6 7 . Successful Hack 13 | . 6 7 . Influence Decreases 13 | . 6 7 . Time Decay 6 | . 6 . . Lost Part 7 | . . 7 . Squads Dispatched 2 | . . . 2 Investigation . | . . . . Extermination . | . . . . Reinforcement . | . . . . Assault 2 | . . . 2 Garrison . | . . . . Intercept . | . . . . Searches Triggered . | . . . . Construction Impeded . | . . . . Haulers Reinforced . | . . . . Active Scanning Responses . | . . . . Cargo Convoy Interrupts . | . . . . Stealth | -11 -10 -9 -9 --------- Run | Yrd Mat Mat Sto Distress Signals 2 | . 1 . 1 Communications Jammed . | . . . . Distress Signals . | . . . . Times Spotted 36 | . 10 3 23 Peak Tracking Total 18 | . 5 2 18 Tactical Retreats 4 | . . 1 3 ECM-based Alert Blocks 7 | . . 1 6 Traps | -11 -10 -9 -9 ------- Run | Yrd Mat Mat Sto Traps Triggered 2 | . 1 . 1 Indirectly . | . . . . Trap Hack Attempts . | . . . . Triggered . | . . . . Disarmed . | . . . . Reprogrammed . | . . . . Reused . | . . . . Traps Extracted . | . . . . Installed . | . . . . Triggered . | . . . . Machines | -11 -10 -9 -9 ---------- Run | Yrd Mat Mat Sto Machines Disabled . | . . . . Max in Single Turn . | . . . . Garrison Access 1 | . . . 1 Machines Repaired . | . . . . Machines Dismantled . | . . . . Machines Sabotaged . | . . . . Overloaded Fab Kills . | . . . . Hacking | -11 -10 -9 -9 --------- Run | Yrd Mat Mat Sto Machines Accessed 4 | . 2 2 . Terminals 4 | . 2 2 . Fabricators . | . . . . Repair Stations . | . . . . Recycling Units . | . . . . Scanalyzers . | . . . . Garrison Access . | . . . . Total Hacks 12 | . 6 6 . Successful 4 | . 2 2 . Failed 8 | . 4 4 . Catastrophic 5 | . 2 3 . Database Lockouts . | . . . . Manual 10 | . 5 5 . Terminals 12 | . 6 6 . Fabricators . | . . . . Repair Stations . | . . . . Recycling Units . | . . . . Scanalyzers . | . . . . Garrison Access . | . . . . Terminal Hacks 4 | . 2 2 . Part Schematic 1 | . . 1 . Registered Components 1 | . 1 . . Zone Layout 2 | . 1 1 . Fabricator Hacks . | . . . . Repair Station Hacks . | . . . . Recycling Unit Hacks . | . . . . Scanalyzer . | . . . . Garrison Access Hacks . | . . . . Unauthorized Hacks . | . . . . Terminals . | . . . . Fabricators . | . . . . Repair Stations . | . . . . Recycling Units . | . . . . Scanalyzers . | . . . . Garrison Access . | . . . . Data Cores Recovered . | . . . . Used . | . . . . Hacking Detections 4 | . 2 2 . Full Trace Events 1 | . . 1 . Feedback Events . | . . . . Feedback Blocked . | . . . . Robot Schematics Acquired . | . . . . Robots Built . | . . . . Authchips . | . . . . Time . | . . . . Total Robot Build Rating . | . . . . Part Schematics Acquired 1 | . . 1 . Parts Built . | . . . . Authchips . | . . . . Time . | . . . . Total Part Build Rating . | . . . . Part Studies Acquired . | . . . . Parts Repaired . | . . . . Time . | . . . . Parts Recycled . | . . . . Recycled Matter . | . . . . Retrieved Matter . | . . . . Retrieved Components . | . . . . Parts Scanalyzed . | . . . . Part Schematics Acquired . | . . . . Parts Damaged . | . . . . Bothacking | -11 -10 -9 -9 ------------ Run | Yrd Mat Mat Sto Used RIF Installer . | . . . . Robots Hacked . | . . . . Non-combat . | . . . . Combat . | . . . . Robot Hacks Applied . | . . . . Relay Couplers Released 3 | . . . 3 Machine Destruction 3 | . . . 3 Fabnet Peak Effective % . | . . . . Robots Rewired . | . . . . Allies Hacked . | . . . . Hacks Repelled . | . . . . Allies | -11 -10 -9 -9 -------- Run | Yrd Mat Mat Sto Total Allies . | . . . . Largest Group . | . . . . Highest-Rated Group . | . . . . Highest-Rated Ally . | . . . . Total Orders . | . . . . Ally Attacks . | . . . . Total Damage . | . . . . Kills . | . . . . Allies Corrupted . | . . . . Allies Melted . | . . . . Intel | -11 -10 -9 -9 ------- Run | Yrd Mat Mat Sto Active Infowar (turns) 647 | . 417 54 176 Seismic 600 | . 417 38 145 ECM 229 | . . 53 176 Robot Analysis Total . | . . . . Derelict Logs Recovered . | . . . . Drone Launches . | . . . . Drone Recoveries . | . . . . Exploration | -11 -10 -9 -9 ------------- Run | Yrd Mat Mat Sto Turns Passed 744 | 37 464 54 189 Spaces Moved 528 | 27 353 44 104 Core 6 | 5 1 . . Treads . | . . . . Legs 522 | 22 352 44 104 Wheels . | . . . . Hover . | . . . . Flight . | . . . . Fastest Speed 50 | 50 120 120 120 Average Speed 119 | 112 120 120 120 Slowest Speed 200 | 150 200 120 120 Overloaded Moves . | . . . . Propulsion Burnouts . | . . . . Robots Hopped . | . . . . Potential Cave-ins . | . . . . Cave-ins Triggered . | . . . . Exploration Rate (%) 25 | 3 71 6 20 Regions Visited 3 Branch Regions 1 Pre-discovered Areas . | . . . . Known Exits Taken . | . . . . Unknown Exits Taken 3 | 1 1 1 . Scrap Searched . | . . . . Spaces Dug . | . . . . Terrain Destroyed . | . . . . Melee . | . . . . Projectile . | . . . . AOE . | . . . . Terrain Rammed . | . . . . Walls Destroyed . | . . . . Machines Disabled . | . . . . Actions | -11 -10 -9 -9 --------- Run | Yrd Mat Mat Sto Total 632 | 31 389 45 167 Wait 73 | . 26 . 47 Move 525 | 26 352 43 104 Hop . | . . . . Pick Up 6 | . 6 . . Fast Attach 8 | 4 4 . . Attach 6 | . . 2 4 Detach 1 | . . . 1 Swap 2 | 1 1 . . Drop . | . . . . Fire . | . . . . Melee . | . . . . Ram 1 | . . . 1 Kick 10 | . . . 10 Crush . | . . . . Escape Stasis . | . . . . Rewire . | . . . . Trap . | . . . . Miscellaneous . | . . . . Route ------- -11/Scrapyard -10/Materials (discovered 6 exits: *Mat x3 / [*Min x2] / [*Sub]) -9/Materials -9/Storage History --------- Turn | Location | Event 14 | -11/Scrapyard | Discovered new exit (range 16) 38 | -11/Scrapyard | Entered Materials 39 | -10/Materials | Met a group of wandering Federalists 193 | -10/Materials | Discovered new exit (range 6) 242 | -10/Materials | Discovered new exit (range 3) 286 | -10/Materials | Discovered new exit (range 16) 309 | -10/Materials | Build established: Mutant 329 | -10/Materials | Discovered new exit (range 14) 341 | -10/Materials | Discovered new exit (range 16) 489 | -10/Materials | Discovered new exit (range 7) 502 | -10/Materials | Entered another Materials area 502 | -9/Materials | Evolved 2 slots: Propulsion x1, Utility x1 512 | -9/Materials | Discovered new exit (range 15) 556 | -9/Materials | Entered Storage 736 | -9/Storage | Core integrity fell below 50% 743 | -9/Storage | Core integrity fell below 20% 745 | -9/Storage | Destroyed by Y-45 Defender with Heavy Assault Rifle Last Messages --------------- 00731_ C-45 Heavy ARC bursts open, deploying its payload. 00731_ G-47 Trooper unfolds itself. 00731_ G-34 Mercenary unfolds itself. 00731_ B-36 Bruiser unfolds itself. 00731_ I-25 Savior unfolds itself. 00732_ ECM Suite destroyed. 00734_ Kicked G-47 Trooper out of the way. 00735_ Kicked G-34 Mercenary out of the way. 00736_ Aluminum Leg destroyed. 00736_ Kicked G-34 Mercenary. 00737_ Aluminum Leg destroyed. 00738_ Slammed into G-34 Mercenary. 00739_ Critical hit (Burn: +37). 00740_ Acquired 7 matter. 00740_ Kicked G-34 Mercenary. 00740_ G-34 Mercenary knocked back. 00741_ Kicked G-34 Mercenary. 00743_ Kicked G-34 Mercenary out of the way. 00745_ Kicked G-34 Mercenary. Map ----- +----------------------------------------------------+ | ??????? """ # ########+?????????????????? | | ??????? """ % ?# #?????????????????????????? | | ??????? ?+ #?????????????????????????? | | ???????#######??###+## #?????????????????????????? | | ????????????????? # #?????????????????????????? | | ??????????????? # #?????????????????????????? | | ??????????????# # #?????????????????????????? | | ??????????????# # #?????????????????????????? | | ??????????????# ][ # #?????????????????????????? | | ??????????????# [[ # #?????????????????????????? | | ??????????????##"T"### #?????????????????????????? | | ???????????????#"""??# #?????????????????????????? | | ???????????????####??# #?????????????????????????? | | ?????????????????????# #?????????????????????????? | | ?????????????????????# #?????????????????????????? | | ?????????????????????#Y#?????????????????????????? | | ????????????????????##/####??????????????????????? | | ????????????????????# #??????????????????????? | | ????????????????????# #??????????????????????? | | ????????????????????#""" i#??????????????????????? | | ????????????????????#"""ss#??????????????????????? | | ????????????????????#"""Yg#??????????????????????? | | ????????????????????# gb%g#??????????????????????? | | ????????????????????#"""gs#??????????????????????? | | ????????????????????#"""gs#??????????????????????? | | ????????????????????#"""b@#??????????????????????? | | ????????????????????# ig#??????????????????????? | | ???????????????????# = | #??????????????????????? | | ???????????????????## #??????????????????????? | | ????????????????????####+##??????????????????????? | | ?????????????????????????????????????????????????? | | ?????????????????????????????????????????????????? | | ?????????????????????????????????????????????????? | | ?????????????????????????????????????????????????? | | ?????????????????????????????????????????????????? | | ?????????????????????????????????????????????????? | | ?????????????????????????????????????????????????? | | ?????????????????????????????????????????????????? | | ?????????????????????????????????????????????????? | | ?????????????????????????????????????????????????? | | ?????????????????????????????????????????????????? | | ?????????????????????????????????????????????????? | | ?????????????????????????????????????????????????? | | ?????????????????????????????????????????????????? | | ?????????????????????????????????????????????????? | | ?????????????????????????????????????????????????? | | ?????????????????????????????????????????????????? | | ?????????????????????????????????????????????????? | | ?????????????????????????????????????????????????? | | ?????????????????????????????????????????????????? | +----------------------------------------------------+ Best States ------------- Heat Dissipation 28 Energy Generation 10 Energy Capacity 250 Matter Stores 300 Matter Capacity 300 Sight Range 16 Terrain Scan Density 10 ECM Strength 1 Evasion (%) 55 Item Schematics ----------------- Mace | -9/Materials | Hacked Robot Schematics ------------------ None Fabricated ------------ Nothing Repaired ---------- Nothing Studied --------- None Alien Tech Used ----------------- None Achievements -------------- None Challenges ------------ None Game ------ Seed JunkImprinterTearclaws Manual? 0 Play Time 00:12:32 Cumulative 240.1 hours Start 2026.07.21 @ 00:14:49 End 2026.07.21 @ 00:38:29 Sessions 1 Manual Loads 0 Difficulty Rogue Special Mode None Game No. 90 Rogue 90 Adventurer 0 Explorer 0 Win Type - Total 11 Types 3/1/2/2/1/0/0/1/0/1 Lore% 61 Gallery% 63 Achievement% 61 Wizard Run 0 Options --------- Layout 2 ASCII 0 Keyboard 1 Movement Numpad Keybinds 0 Fullscreen 2 Font 24/Smallcaps Map View 50x44 Zoom Use 0% Tactical HUD 1 Map Filters NONE Filters NONE Steam 1 RUN: f98a59d3-b967-48dd-bfd6-c717898c1e0b